fUST/lending_fUST_20241026
["ID","MTS","AMOUNT","RATE_DAILY","PERIOD"]
[340820679,1729878640670,-364.26457498,0.00019973,2]
[340820681,1729878640680,-500.0,0.00019973,2]
[340820683,1729878640692,-500.0,0.00019973,2]
[340820686,1729878640702,-317.16029281,0.00019973,2]
[340820688,1729878640712,-500.0,0.00019973,2]
[340820690,1729878640722,-500.0,0.00019973,2]
[340820692,1729878640732,-166.35061692,0.00019973,2]
[340820694,1729878640743,-543.80034638,0.00019973,2]
[340820696,1729878640752,-13431.1883473,0.0001999,3]
[340820698,1729878640762,-24158.7519014,0.0001999,3]
[340820700,1729878640771,-206.31747741,0.00019999,2]
[340820702,1729878640782,-3034.87990319,0.00019999,2]
[340820704,1729878640791,-613.98359581,0.00019999,2]
[340820706,1729878640801,-203.27258156,0.0002,2]
[340820708,1729878640810,-16267.99981994,0.0002,2]
[340820710,1729878640821,-11018.0,0.0002,2]
[340820712,1729878640831,-2049.05101279,0.0002,30]
[340820714,1729878640841,-4770.75168896,0.0002,7]
[340820716,1729878640852,-184.0,0.0002,2]
[340820719,1729878640862,-2000.0,0.0002,2]
[340820721,1729878640872,-500.0,0.0002,2]
[340820723,1729878640881,-513.0,0.0002,2]
[340820725,1729878640891,-232.087,0.0002,2]
[340820727,1729878640901,-200.0,0.0002,2]
[340820729,1729878640911,-151.54849218,0.0002,2]
[340820731,1729878640920,-8404.74431352,0.0002,2]
[340820733,1729878640930,-151.0,0.0002,2]
[340820735,1729878640939,-303.11517528,0.0002,2]
[340820737,1729878640950,-389.6347,0.0002,2]
[340820739,1729878640961,-501.00608707,0.0002,2]
[340820741,1729878640971,-500.0,0.0002,2]
[340820743,1729878640980,-500.0,0.0002004,2]
[340820745,1729878640990,-151.0,0.00020161,2]
[340820747,1729878640999,-152.66077226,0.00020161,2]
[340820749,1729878641010,-551.0,0.00020161,2]
[340820752,1729878641022,-251.06547639,0.00020161,2]
[340820754,1729878641032,-157.02973844,0.00020161,2]
[340820756,1729878641042,-151.0,0.00020161,2]
[340820758,1729878641054,-500.0,0.00020161,2]
[340820760,1729878641064,-500.0,0.00020161,2]
[340820762,1729878641074,-151.0,0.00020161,2]
[340820764,1729878641084,-500.0,0.00020161,2]
[340820767,1729878641094,-152.75641748,0.00020161,2]
[340820769,1729878641103,-156.91856716,0.00020161,2]
[340820771,1729878641113,-303.11517528,0.000202,2]
[340820773,1729878641122,-1000.0,0.00020247,2]
[340820775,1729878641132,-1000.0,0.00020247,2]
[340820777,1729878641141,-1000.0,0.00020247,2]
[340820779,1729878641152,-1000.0,0.00020247,2]
[340820781,1729878641163,-1000.0,0.00020314,2]
[340820783,1729878641172,-303.11517528,0.000204,2]
[340820785,1729878641182,-400.0,0.00020447,2]
[340820787,1729878641191,-303.11517528,0.000206,2]
[340820789,1729878641201,-151.0,0.00020615,2]
[340820791,1729878641211,-24158.7519014,0.0002064,3]
[340820793,1729878641220,-1500.0,0.00020647,2]
[340820795,1729878641230,-1500.0,0.00020647,2]
[340820797,1729878641240,-1500.0,0.00020647,2]
[340820800,1729878641250,-1500.0,0.00020647,2]
[340820802,1729878641260,-13431.1883473,0.0002065,3]
[340820804,1729878641269,-4299.93167711,0.0002066,7]
[340820806,1729878641279,-1500.0,0.00020715,2]
[340820808,1729878641289,-154.59055,0.00020715,2]
[340820810,1729878641299,-259.652657,0.00020715,2]
[340820812,1729878641309,-259.652657,0.00020715,2]
[340820814,1729878641319,-244.922673,0.00020715,2]
[340820816,1729878641329,-244.922673,0.00020715,2]
[340820818,1729878641338,-873.75265,0.00020715,2]
[340820820,1729878641348,-873.75265,0.00020715,2]
[340820822,1729878641358,-151.0,0.00020715,2]
[340820823,1729878641368,-409.971696,0.00020715,2]
[340820824,1729878641377,-409.971696,0.00020715,2]
[340820825,1729878641387,-735.781027,0.00020715,2]
[340820826,1729878641396,-735.781027,0.00020715,2]
[340820827,1729878641406,-303.11517528,0.000208,2]
[340820828,1729878641416,-1000.0,0.0002091,2]
[340820829,1729878641425,-823.0,0.00020935,2]
[340820830,1729878641435,-465.21894994,0.00020962,2]
[340820831,1729878641445,-24158.7519014,0.00020991,3]
[340820833,1729878641454,-150.112233,0.00021,5]
[340820834,1729878641463,-523.0,0.00021,2]
[340820835,1729878641472,-200.0,0.00021,3]
[340820837,1729878641482,-3000.0,0.00021,2]
[340820839,1729878641492,-465.922673,0.00021,2]
[340820841,1729878641502,-465.922673,0.00021,2]
[340820843,1729878641512,-151.0,0.00021,2]
[340820845,1729878641521,-151.0,0.00021,2]
[340820847,1729878641531,-151.0,0.00021,2]
[340820849,1729878641541,-151.0,0.00021,2]
[340820851,1729878641550,-252.645245,0.00021,2]
[340820853,1729878641559,-151.0,0.00021,2]
[340820855,1729878641569,-151.0,0.00021,2]
[340820857,1729878641578,-454.67276292,0.00021,4]
[340820859,1729878641588,-505.069313,0.00021,2]
[340820861,1729878641598,-505.069313,0.00021,2]
[340820863,1729878641611,-151.0,0.00021,2]
[340820865,1729878641620,-151.0,0.00021,2]
[340820867,1729878641630,-13431.1883473,0.00021,3]
[340820870,1729878641639,-13431.1883473,0.00021,3]
[340820872,1729878641650,-152.085734,0.00021001,2]
[340820874,1729878641660,-151.0,0.00021001,2]
[340820876,1729878641670,-151.0,0.00021001,2]
[340820878,1729878641680,-151.0,0.00021001,2]
[340820880,1729878641690,-151.0,0.00021001,2]
[340820882,1729878641700,-151.0,0.00021001,2]
[340820884,1729878641709,-151.0,0.00021001,2]
[340820886,1729878641719,-235.597057,0.00021001,2]
[340820888,1729878641728,-235.597057,0.00021001,2]
[340820890,1729878641738,-1775.01026,0.00021001,2]
[340820892,1729878641749,-1775.01026,0.00021001,2]
[340820894,1729878641760,-151.0,0.00021001,2]
[340820896,1729878641769,-3000.0,0.0002101,2]
[340820898,1729878641779,-465.922673,0.0002101,2]
[340820900,1729878641789,-465.922673,0.0002101,2]
[340820902,1729878641799,-151.0,0.0002101,2]
[340820904,1729878641809,-151.0,0.0002101,2]
[340820906,1729878641819,-151.0,0.0002101,2]
[340820908,1729878641828,-151.0,0.0002101,2]
[340820910,1729878641838,-151.0,0.0002101,2]
[340820912,1729878641848,-151.0,0.0002101,2]
[340820914,1729878641857,-505.069313,0.0002101,2]
[340820916,1729878641867,-505.069313,0.0002101,2]
[340820918,1729878641878,-13431.1883473,0.0002101,3]
[340820920,1729878641888,-24158.7519014,0.0002101,3]
[340820922,1729878641898,-151.0,0.0002101,2]
[340820924,1729878641908,-151.0,0.0002101,2]
[340820926,1729878641918,-259.652657,0.0002101,2]
[340820928,1729878641927,-259.652657,0.0002101,2]
[340820930,1729878641936,-244.922673,0.0002101,2]
[340820933,1729878641946,-244.922673,0.0002101,2]
[340820935,1729878641957,-873.75265,0.0002101,2]
[340820937,1729878641966,-873.75265,0.0002101,2]
[340820939,1729878641976,-151.0,0.0002101,2]
[340820941,1729878641986,-409.971696,0.0002101,2]
[340820943,1729878641995,-409.971696,0.0002101,2]
[340820945,1729878642004,-735.781027,0.0002101,2]
[340820947,1729878642014,-735.781027,0.0002101,2]
[340820948,1729878642023,-151.0,0.0002102,2]
[340820951,1729878642033,-3000.0,0.0002102,2]
[340820953,1729878642043,-151.0,0.0002102,2]
[340820955,1729878642052,-151.0,0.0002102,2]
[340820957,1729878642062,-151.0,0.0002102,2]
[340820959,1729878642071,-151.0,0.0002102,2]
[340820961,1729878642080,-151.0,0.0002102,2]
[340820963,1729878642090,-151.0,0.0002102,2]
[340820965,1729878642101,-454.017547,0.0002102,2]
[340820967,1729878642111,-454.017547,0.0002102,2]
[340820969,1729878642120,-151.0,0.0002102,2]
[340820971,1729878642130,-151.0,0.0002102,2]
[340820973,1729878642140,-151.0,0.0002102,2]
[340820975,1729878642149,-151.0,0.0002102,2]
[340820977,1729878642159,-181.969578,0.0002102,2]
[340820979,1729878642168,-235.597057,0.0002102,2]
[340820981,1729878642178,-235.597057,0.0002102,2]
[340820983,1729878642188,-1775.01026,0.0002102,2]
[340820985,1729878642198,-1775.01026,0.0002102,2]
[340820987,1729878642208,-465.922673,0.0002102,2]
[340820989,1729878642217,-465.922673,0.0002102,2]
[340820991,1729878642227,-151.0,0.0002102,2]
[340820993,1729878642237,-151.0,0.0002102,2]
[340820995,1729878642247,-151.0,0.0002102,2]
[340820997,1729878642256,-151.0,0.0002102,2]
[340820999,1729878642266,-254.212188,0.0002102,2]
[340821002,1729878642275,-151.0,0.0002102,2]
[340821004,1729878642285,-151.0,0.0002102,2]
[340821007,1729878642294,-505.069313,0.0002102,2]
[340821009,1729878642312,-505.069313,0.0002102,2]
[340821011,1729878642321,-151.0,0.0002102,2]
[340821013,1729878642330,-151.0,0.0002102,2]
[340821016,1729878642339,-259.652657,0.0002102,2]
[340821018,1729878642351,-259.652657,0.0002102,2]
[340821019,1729878642360,-244.922673,0.0002102,2]
[340821022,1729878642370,-244.922673,0.0002102,2]
[340821024,1729878642386,-873.75265,0.0002102,2]
[340821026,1729878642396,-873.75265,0.0002102,2]
[340821028,1729878642405,-151.0,0.0002102,2]
[340821030,1729878642414,-409.971696,0.0002102,2]
[340821032,1729878642424,-409.971696,0.0002102,2]
[340821034,1729878642434,-735.781027,0.0002102,2]
[340821036,1729878642443,-735.781027,0.0002102,2]
[340821038,1729878642452,-3000.0,0.0002103,2]
[340821040,1729878642462,-151.0,0.0002103,2]
[340821042,1729878642472,-151.0,0.0002103,2]
[340821044,1729878642482,-151.0,0.0002103,2]
[340821046,1729878642492,-151.0,0.0002103,2]
[340821048,1729878642500,-151.0,0.0002103,2]
[340821050,1729878642510,-235.597057,0.0002103,2]
[340821052,1729878642519,-235.597057,0.0002103,2]
[340821054,1729878642528,-1775.01026,0.0002103,2]
[340821056,1729878642537,-1775.01026,0.0002103,2]
[340821058,1729878642546,-151.0,0.0002103,2]
[340821060,1729878642555,-3000.0,0.0002104,2]
[340821062,1729878642565,-13431.1883473,0.0002104,3]
[340821064,1729878642574,-3000.0,0.0002105,2]
[340821066,1729878642584,-157.507902,0.0002105,2]
[340821068,1729878642593,-151.0,0.0002105,2]
[340821070,1729878642603,-151.0,0.0002105,2]
[340821072,1729878642613,-151.0,0.0002105,2]
[340821074,1729878642622,-454.017547,0.0002105,2]
[340821076,1729878642632,-454.017547,0.0002105,2]
[340821078,1729878642641,-259.652657,0.0002105,2]
[340821080,1729878642651,-259.652657,0.0002105,2]
[340821083,1729878642661,-244.922673,0.0002105,2]
[340821085,1729878642672,-244.922673,0.0002105,2]
[340821087,1729878642683,-873.75265,0.0002105,2]
[340821089,1729878642693,-873.75265,0.0002105,2]
[340821091,1729878642704,-151.0,0.0002105,2]
[340821093,1729878642713,-409.971696,0.0002105,2]
[340821095,1729878642723,-409.971696,0.0002105,2]
[340821097,1729878642733,-735.781027,0.0002105,2]
[340821099,1729878642742,-735.781027,0.0002105,2]
[340821101,1729878642752,-3000.0,0.0002106,2]
[340821103,1729878642762,-465.922673,0.0002106,2]
[340821105,1729878642771,-465.922673,0.0002106,2]
[340821108,1729878642781,-151.0,0.0002106,2]
[340821110,1729878642791,-151.0,0.0002106,2]
[340821112,1729878642801,-151.0,0.0002106,2]
[340821114,1729878642811,-151.0,0.0002106,2]
[340821116,1729878642821,-151.0,0.0002106,2]
[340821118,1729878642830,-505.069313,0.0002106,2]
[340821120,1729878642840,-505.069313,0.0002106,2]
[340821122,1729878642849,-151.0,0.0002106,2]
[340821124,1729878642859,-151.0,0.0002106,2]
[340821126,1729878642869,-24158.7519014,0.0002106,3]
[340821128,1729878642878,-3000.0,0.0002107,2]
[340821130,1729878642888,-13431.1883473,0.0002107,3]
[340821132,1729878642898,-500.0,0.00021073,2]
[340821134,1729878642908,-3000.0,0.0002108,2]
[340821136,1729878642918,-3000.0,0.0002109,2]
[340821138,1729878642927,-151.0,0.0002109,2]
[340821140,1729878642937,-151.0,0.0002109,2]
[340821142,1729878642947,-151.0,0.0002109,2]
[340821144,1729878642956,-151.0,0.0002109,2]
[340821146,1729878642966,-235.597057,0.0002109,2]
[340821148,1729878642976,-235.597057,0.0002109,2]
[340821150,1729878642986,-1775.01026,0.0002109,2]
[340821152,1729878642995,-1775.01026,0.0002109,2]
[340821154,1729878643005,-151.0,0.0002109,2]
[340821156,1729878643015,-13431.1883473,0.0002109,3]
[340821158,1729878643024,-24158.7519014,0.0002109,3]
[340821160,1729878643033,-259.652657,0.0002109,2]
[340821162,1729878643043,-259.652657,0.0002109,2]
[340821164,1729878643053,-244.922673,0.0002109,2]
[340821166,1729878643062,-244.922673,0.0002109,2]
[340821168,1729878643072,-873.75265,0.0002109,2]
[340821170,1729878643082,-873.75265,0.0002109,2]
[340821172,1729878643091,-151.0,0.0002109,2]
[340821174,1729878643101,-409.971696,0.0002109,2]
[340821176,1729878643110,-409.971696,0.0002109,2]
[340821178,1729878643120,-735.781027,0.0002109,2]
[340821179,1729878643129,-735.781027,0.0002109,2]
[340821182,1729878643138,-17608.74013948,0.000211,7]
[340821185,1729878643148,-151.0,0.000211,2]
[340821187,1729878643158,-151.0,0.000211,2]
[340821189,1729878643167,-151.0,0.000211,2]
[340821192,1729878643177,-151.0,0.000211,2]
[340821195,1729878643186,-152.576636,0.000211,2]
[340821198,1729878643196,-151.0,0.000211,2]
[340821201,1729878643206,-151.0,0.000211,2]
[340821203,1729878643216,-151.0,0.000211,2]
[340821205,1729878643226,-151.0,0.000211,2]
[340821207,1729878643235,-151.0,0.000211,2]
[340821209,1729878643245,-651.816766,0.000211,2]
[340821211,1729878643255,-225.614,0.000211,2]
[340821213,1729878643265,-225.614,0.000211,2]
[340821215,1729878643275,-151.0,0.000211,2]
[340821236,1729878643457,-3000.0,0.000211,2]
[340821238,1729878643469,-151.0,0.000211,2]
[340821241,1729878643479,-151.0,0.000211,2]
[340821243,1729878643488,-151.0,0.000211,2]
[340821245,1729878643497,-151.0,0.000211,2]
[340821247,1729878643507,-153.584192,0.000211,2]
[340821249,1729878643516,-151.0,0.000211,2]
[340821251,1729878643526,-153.584192,0.000211,2]
[340821253,1729878643535,-454.017547,0.000211,2]
[340821255,1729878643544,-454.017547,0.000211,2]
[340821257,1729878643554,-465.922673,0.000211,2]
[340821259,1729878643564,-465.922673,0.000211,2]
[340821261,1729878643574,-151.0,0.000211,2]
[340821263,1729878643583,-151.0,0.000211,2]
[340821265,1729878643593,-151.0,0.000211,2]
[340821267,1729878643603,-151.0,0.000211,2]
[340821270,1729878643616,-505.069313,0.000211,2]
[340821272,1729878643627,-505.069313,0.000211,2]
[340821274,1729878643637,-151.0,0.000211,2]
[340821276,1729878643647,-151.0,0.000211,2]
[340821278,1729878643657,-3000.0,0.0002111,2]
[340821280,1729878643667,-151.0,0.0002111,2]
[340821282,1729878643677,-151.0,0.0002111,2]
[340821284,1729878643687,-151.0,0.0002111,2]
[340821286,1729878643698,-286.04866,0.0002111,2]
[340821288,1729878643708,-235.597057,0.0002111,2]
[340821290,1729878643717,-235.597057,0.0002111,2]
[340821292,1729878643727,-1775.01026,0.0002111,2]
[340821294,1729878643737,-1775.01026,0.0002111,2]
[340821296,1729878643746,-151.0,0.0002111,2]
[340821298,1729878643756,-259.652657,0.0002111,2]
[340821301,1729878643766,-259.652657,0.0002111,2]
[340821303,1729878643775,-244.922673,0.0002111,2]
[340821305,1729878643785,-244.922673,0.0002111,2]
[340821306,1729878643794,-873.75265,0.0002111,2]
[340821309,1729878643803,-873.75265,0.0002111,2]
[340821311,1729878643813,-151.0,0.0002111,2]
[340821313,1729878643822,-409.971696,0.0002111,2]
[340821315,1729878643831,-409.971696,0.0002111,2]
[340821316,1729878643840,-735.781027,0.0002111,2]
[340821317,1729878643849,-735.781027,0.0002111,2]
[340821318,1729878643858,-24158.7519014,0.0002111,3]
[340821319,1729878643867,-335.1642948,0.00021115,2]
[340821320,1729878643877,-2000.0,0.00021115,2]
[340821321,1729878643886,-1507.95020462,0.00021115,2]
[340821322,1729878643896,-2000.0,0.00021115,2]
[340821323,1729878643907,-3000.0,0.0002112,2]
[340821324,1729878643916,-13431.1883473,0.0002112,3]
[340821325,1729878643926,-3000.0,0.0002113,2]
[340821327,1729878643935,-3000.0,0.0002114,2]
[340821329,1729878643944,-3000.0,0.0002115,2]
[340821331,1729878643953,-13431.1883473,0.0002115,3]
[340821333,1729878643963,-3000.0,0.0002116,2]
[340821335,1729878643972,-151.0,0.0002116,2]
[340821337,1729878643982,-151.0,0.0002116,2]
[340821339,1729878643991,-151.0,0.0002116,2]
[340821341,1729878644001,-454.017547,0.0002116,2]
[340821343,1729878644011,-454.017547,0.0002116,2]
[340821345,1729878644021,-151.0,0.0002116,2]
[340821348,1729878644033,-151.0,0.0002116,2]
[340821350,1729878644043,-151.0,0.0002116,2]
[340821352,1729878644054,-151.0,0.0002116,2]
[340821354,1729878644064,-259.652657,0.0002116,2]
[340821356,1729878644073,-259.652657,0.0002116,2]
[340821358,1729878644083,-244.922673,0.0002116,2]
[340821360,1729878644092,-244.922673,0.0002116,2]
[340821362,1729878644103,-873.75265,0.0002116,2]
[340821364,1729878644112,-873.75265,0.0002116,2]
[340821366,1729878644121,-199.960694,0.0002116,2]
[340821368,1729878644130,-409.971696,0.0002116,2]
[340821371,1729878644140,-409.971696,0.0002116,2]
[340821373,1729878644149,-735.781027,0.0002116,2]
[340821375,1729878644159,-735.781027,0.0002116,2]
[340821376,1729878644168,-13431.1883473,0.0002116,3]
[340821379,1729878644177,-151.0,0.0002117,2]
[340821381,1729878644186,-151.0,0.0002117,2]
[340821383,1729878644196,-151.0,0.0002117,2]
[340821384,1729878644205,-229.393939,0.0002117,2]
[340821387,1729878644216,-151.0,0.0002117,2]
[340821388,1729878644225,-151.0,0.0002117,2]
[340821391,1729878644235,-151.0,0.0002117,2]
[340821393,1729878644244,-151.0,0.0002117,2]
[340821395,1729878644254,-151.0,0.0002117,2]
[340821397,1729878644263,-151.0,0.0002117,2]
[340821399,1729878644273,-151.0,0.0002117,2]
[340821401,1729878644283,-151.0,0.0002117,2]
[340821403,1729878644292,-151.0,0.0002117,2]
[340821405,1729878644302,-151.0,0.0002117,2]
[340821407,1729878644312,-651.816766,0.0002117,2]
[340821409,1729878644322,-225.614,0.0002117,2]
[340821412,1729878644331,-225.614,0.0002117,2]
[340821413,1729878644341,-3000.0,0.0002117,2]
[340821415,1729878644351,-151.0,0.0002117,2]
[340821418,1729878644361,-151.0,0.0002117,2]
[340821420,1729878644371,-151.0,0.0002117,2]
[340821422,1729878644380,-151.0,0.0002117,2]
[340821424,1729878644390,-153.584192,0.0002117,2]
[340821426,1729878644400,-182.389636,0.0002117,2]
[340821428,1729878644410,-153.584192,0.0002117,2]
[340821430,1729878644419,-454.017547,0.0002117,2]
[340821432,1729878644428,-454.017547,0.0002117,2]
[340821434,1729878644438,-151.0,0.0002117,2]
[340821436,1729878644447,-151.0,0.0002117,2]
[340821438,1729878644457,-151.0,0.0002117,2]
[340821440,1729878644466,-151.0,0.0002117,2]
[340821442,1729878644477,-235.597057,0.0002117,2]
[340821444,1729878644486,-235.597057,0.0002117,2]
[340821446,1729878644496,-235.597057,0.0002117,2]
[340821448,1729878644506,-235.597057,0.0002117,2]
[340821450,1729878644516,-1775.01026,0.0002117,2]
[340821452,1729878644526,-1775.01026,0.0002117,2]
[340821454,1729878644535,-1775.01026,0.0002117,2]
[340821456,1729878644545,-1775.01026,0.0002117,2]
[340821458,1729878644555,-465.922673,0.0002117,2]
[340821460,1729878644564,-465.922673,0.0002117,2]
[340821462,1729878644574,-465.922673,0.0002117,2]
[340821464,1729878644584,-465.922673,0.0002117,2]
[340821466,1729878644594,-151.0,0.0002117,2]
[340821468,1729878644604,-151.0,0.0002117,2]
[340821471,1729878644616,-151.0,0.0002117,2]
[340821473,1729878644626,-151.0,0.0002117,2]
[340821474,1729878644636,-151.0,0.0002117,2]
[340821476,1729878644645,-151.0,0.0002117,2]
[340821478,1729878644656,-151.0,0.0002117,2]
[340821480,1729878644666,-151.0,0.0002117,2]
[340821482,1729878644677,-505.069313,0.0002117,2]
[340821485,1729878644687,-505.069313,0.0002117,2]
[340821487,1729878644698,-505.069313,0.0002117,2]
[340821489,1729878644710,-505.069313,0.0002117,2]
[340821491,1729878644720,-26862.3766946,0.0002117,3]
[340821493,1729878644730,-151.0,0.0002117,2]
[340821495,1729878644740,-151.0,0.0002117,2]
[340821497,1729878644750,-259.652657,0.0002117,2]
[340821499,1729878644760,-259.652657,0.0002117,2]
[340821502,1729878644771,-244.922673,0.0002117,2]
[340821503,1729878644780,-244.922673,0.0002117,2]
[340821505,1729878644790,-873.75265,0.0002117,2]
[340821507,1729878644799,-873.75265,0.0002117,2]
[340821509,1729878644808,-409.971696,0.0002117,2]
[340821511,1729878644817,-409.971696,0.0002117,2]
[340821513,1729878644827,-735.781027,0.0002117,2]
[340821515,1729878644837,-735.781027,0.0002117,2]
[340821517,1729878644848,-500.0,0.00021173,2]
[340821519,1729878644857,-500.0,0.00021173,2]
[340821521,1729878644867,-500.0,0.00021173,2]
[340821523,1729878644878,-178.74123604,0.00021173,2]
[340821525,1729878644888,-500.0,0.00021173,2]
[340821527,1729878644898,-500.0,0.00021173,2]
[340821529,1729878644907,-500.0,0.00021173,2]
[340821531,1729878644917,-629.81547102,0.00021173,2]
[340821533,1729878644927,-7519.11988307,0.0002118,4]
[340821536,1729878644945,-5484.5972386,0.0002118,4]
[340821538,1729878644956,-1375.89357085,0.0002118,4]
[340821541,1729878644974,-12304.81153383,0.0002118,4]
[340821543,1729878644985,-2975.86800469,0.0002118,4]
[340821545,1729878644995,-151.0,0.0002118,2]
[340821547,1729878645005,-151.0,0.0002118,2]
[340821549,1729878645018,-151.0,0.0002118,2]
[340821551,1729878645028,-151.0,0.0002118,2]
[340821553,1729878645037,-151.0,0.0002118,2]
[340821554,1729878645047,-151.0,0.0002118,2]
[340821556,1729878645063,-151.0,0.0002118,2]
[340821558,1729878645074,-151.0,0.0002118,2]
[340821560,1729878645085,-151.0,0.0002118,2]
[340821562,1729878645095,-151.0,0.0002118,2]
[340821564,1729878645105,-151.0,0.0002118,2]
[340821566,1729878645116,-151.0,0.0002118,2]
[340821568,1729878645127,-151.0,0.0002118,2]
[340821570,1729878645137,-151.0,0.0002118,2]
[340821572,1729878645150,-163.518947,0.0002118,2]
[340821574,1729878645161,-651.816766,0.0002118,2]
[340821576,1729878645171,-225.614,0.0002118,2]
[340821578,1729878645181,-225.614,0.0002118,2]
[340821580,1729878645191,-3000.0,0.0002118,2]
[340821582,1729878645202,-151.0,0.0002118,2]
[340821584,1729878645213,-151.0,0.0002118,2]
[340821586,1729878645223,-151.0,0.0002118,2]
[340821588,1729878645232,-151.0,0.0002118,2]
[340821591,1729878645242,-153.584192,0.0002118,2]
[340821593,1729878645252,-153.584192,0.0002118,2]
[340821595,1729878645263,-454.017547,0.0002118,2]
[340821597,1729878645274,-454.017547,0.0002118,2]
[340821599,1729878645285,-151.0,0.0002118,2]
[340821601,1729878645295,-151.0,0.0002118,2]
[340821603,1729878645306,-235.597057,0.0002118,2]
[340821604,1729878645315,-235.597057,0.0002118,2]
[340821606,1729878645325,-1775.01026,0.0002118,2]
[340821608,1729878645336,-1775.01026,0.0002118,2]
[340821610,1729878645346,-465.922673,0.0002118,2]
[340821612,1729878645357,-465.922673,0.0002118,2]
[340821614,1729878645367,-151.0,0.0002118,2]
[340821616,1729878645377,-190.79502,0.0002118,2]
[340821618,1729878645388,-151.0,0.0002118,2]
[340821620,1729878645398,-151.0,0.0002118,2]
[340821622,1729878645408,-151.0,0.0002118,2]
[340821624,1729878645418,-505.069313,0.0002118,2]
[340821626,1729878645428,-505.069313,0.0002118,2]
[340821628,1729878645439,-151.0,0.0002118,2]
[340821630,1729878645449,-231.050091,0.0002118,2]
[340821632,1729878645458,-259.652657,0.0002118,2]
[340821634,1729878645467,-259.652657,0.0002118,2]
[340821636,1729878645476,-244.922673,0.0002118,2]
[340821638,1729878645487,-244.922673,0.0002118,2]
[340821640,1729878645498,-873.75265,0.0002118,2]
[340821642,1729878645508,-873.75265,0.0002118,2]
[340821644,1729878645519,-409.971696,0.0002118,2]
[340821646,1729878645529,-409.971696,0.0002118,2]
[340821648,1729878645539,-735.781027,0.0002118,2]
[340821650,1729878645549,-735.781027,0.0002118,2]
[340821652,1729878645559,-2000.0,0.00021183,2]
[340821654,1729878645570,-3000.0,0.0002119,2]
[340821657,1729878645580,-378.67033213,0.000212,30]
[340821659,1729878645607,-151.0,0.000212,2]
[340821661,1729878645622,-651.816766,0.000212,2]
[340821663,1729878645632,-225.614,0.000212,2]
[340821665,1729878645642,-225.614,0.000212,2]
[340821667,1729878645653,-3000.0,0.000212,2]
[340821670,1729878645663,-151.0,0.000212,2]
[340821672,1729878645673,-151.0,0.000212,2]
[340821674,1729878645687,-153.584192,0.000212,2]
[340821676,1729878645698,-153.584192,0.000212,2]
[340821678,1729878645709,-320.16024001,0.000212,4]
[340821680,1729878645720,-259.652657,0.000212,2]
[340821682,1729878645730,-259.652661,0.000212,2]
[340821684,1729878645740,-244.922673,0.000212,2]
[340821686,1729878645750,-244.922675,0.000212,2]
[340821689,1729878645761,-873.75265,0.000212,2]
[340821691,1729878645772,-873.752658,0.000212,2]
[340821692,1729878645782,-409.971696,0.000212,2]
[340821694,1729878645792,-409.971703,0.000212,2]
[340821697,1729878645802,-735.781027,0.000212,2]
[340821699,1729878645813,-735.78103628,0.000212,2]
[340821701,1729878645823,-151.0,0.0002121,2]
[340821703,1729878645833,-151.0,0.0002121,2]